fUSD/lending_fUSD_20250416
["ID","MTS","AMOUNT","RATE_DAILY","PERIOD"]
[358162734,1744806692389,-1033.61475071,0.00043406,7]
[358162735,1744806692400,-463.52208331,0.00043406,7]
[358162736,1744806692410,-5056.99487872,0.00043406,7]
[358162737,1744806692420,-8543.6046516,0.00043406,7]
[358162738,1744806692430,-500.0,0.00043406,2]
[358162739,1744806692440,-7656.37071146,0.00043406,7]
[358162740,1744806692450,-477.5597863,0.00043406,15]
[358162741,1744806692460,-1489.48291095,0.00043406,10]
[358162742,1744806692471,-703.58464239,0.00043406,10]
[358162743,1744806692481,-618.4548578,0.00043406,6]
[358162744,1744806692491,-4341.08985731,0.00043406,20]
[358162745,1744806692501,-957.04674663,0.00043406,20]
[358162746,1744806692511,-529.99530168,0.00043406,7]
[358162747,1744806692520,-1000.0,0.00043406,10]
[358162748,1744806692530,-500.0,0.00043406,7]
[358162749,1744806692539,-319.48698348,0.00043406,20]
[358162750,1744806692549,-302.46421373,0.00043406,14]
[358162751,1744806692558,-170.23898077,0.00043406,2]
[358162752,1744806692568,-2000.0,0.00043406,4]
[358162753,1744806692577,-917.80298413,0.00043406,3]
[358162754,1744806692587,-874.04846002,0.00043406,3]
[358162755,1744806692596,-2390.1909149,0.00043406,2]
[358162756,1744806692606,-5880.56884944,0.00043406,10]
[358162757,1744806692615,-133950.55976381,0.00043406,7]
[358162758,1744806692625,-3586.08861656,0.00043406,7]
[358162759,1744806692635,-519.87342517,0.00043406,10]
[358162760,1744806692646,-22624.29184753,0.00043406,2]
[358162761,1744806692655,-2269.96897422,0.00043406,14]
[358162762,1744806692665,-275.0,0.00043406,14]
[358162763,1744806692674,-206.6,0.00043406,30]
[358162764,1744806692684,-2297808.09733436,0.00043406,30]
[358162765,1744806692694,-333.0,0.00043406,120]
[358162766,1744806692703,-164.30578201,0.00043406,60]
[358162767,1744806692712,-399.0,0.00043406,120]
[358162768,1744806692722,-2736.37355507,0.00043406,62]
[358162769,1744806692732,-343.92877781,0.00043406,120]
[358162770,1744806692743,-3993.90807306,0.00043406,16]
[358162771,1744806692752,-2685.38808853,0.00043406,120]
[358162772,1744806692762,-430.37390473,0.00043406,14]
[358162773,1744806692771,-8013.35253331,0.00043406,30]
[358162774,1744806692781,-62069.88157321,0.00043406,30]
[358162775,1744806692790,-659.53,0.00043406,120]
[358162776,1744806692800,-1000.0,0.00043406,30]
[358162777,1744806692811,-1235364.36,0.00043406,120]
[358162778,1744806692820,-4042.66860359,0.00043406,2]
[358162779,1744806692830,-3500.0,0.00043406,120]
[358162780,1744806692840,-463.82352202,0.00043406,2]
[358162781,1744806692850,-364.0,0.00043406,31]
[358162782,1744806692860,-364.0,0.00043406,31]
[358162783,1744806692870,-364.0,0.00043406,31]
[358162784,1744806692879,-364.0,0.00043406,31]
[358162785,1744806692889,-239.89600485,0.00043406,7]
[358162786,1744806692898,-4320.0,0.00043406,30]
[358162787,1744806692907,-4000.08615853,0.00043406,2]
[358162788,1744806692917,-1521.45698083,0.00043406,30]
[358162789,1744806692926,-513.41178544,0.00043406,120]
[358162790,1744806692935,-5000.0,0.00043406,36]
[358162791,1744806692945,-218.69309453,0.00043406,30]
[358162792,1744806692955,-780.0,0.00043406,30]
[358162793,1744806692963,-50000.0,0.00043406,30]
[358162794,1744806692972,-150.1,0.00043406,120]
[358162795,1744806692981,-2001.40691507,0.00043406,5]
[358162796,1744806692991,-498.76715643,0.00043406,2]
[358162797,1744806693000,-266.99685,0.00043488,30]
[358162798,1744806693010,-500.0,0.00043497,30]
[358162799,1744806693020,-400.0,0.000435,120]
[358162800,1744806693029,-500.0,0.00043562,2]
[358162801,1744806693039,-2115.69365105,0.0004367,5]
[358162802,1744806693048,-266.99685,0.00043688,30]
[358162803,1744806693058,-150.0,0.00043777,120]
[358162804,1744806693067,-700.0,0.000438,2]
[358162805,1744806693077,-262.13,0.00043835,120]
[358162806,1744806693087,-150.08007389,0.00043836,10]
[358162807,1744806693096,-1200.0,0.00043988,30]
[358162808,1744806693106,-5000.0,0.00044,6]
[358162809,1744806693115,-2800.0,0.00044,4]
[358162810,1744806693125,-10026.49911021,0.00044,2]
[358162811,1744806693135,-53804.15,0.00044,60]
[358162812,1744806693145,-5988.62,0.00044,14]
[358162813,1744806693154,-400.0,0.00044,120]
[358162814,1744806693164,-1100.0,0.00044,120]
[358162815,1744806693174,-19338.28450843,0.00044,120]
[358162816,1744806693183,-50000.0,0.00044,23]
[358162817,1744806693193,-2000.0,0.00044,8]
[358162818,1744806693203,-266.99685,0.00044088,30]
[358162819,1744806693212,-500.0,0.00044204,30]
[358162820,1744806693222,-1000.0,0.00044264,30]
[358162821,1744806693232,-152.0,0.00044284,18]
[358162822,1744806693242,-266.99685,0.00044288,30]
[358162823,1744806693252,-214.0,0.0004437,30]
[358162824,1744806693262,-500.0,0.00044384,2]
[358162825,1744806693272,-40000.0,0.00044406,40]
[358162826,1744806693284,-10000.0,0.00044406,40]
[358162827,1744806693294,-20000.0,0.00044406,50]
[358162828,1744806693305,-50000.0,0.00044406,40]
[358162829,1744806693315,-60000.0,0.00044406,50]
[358162830,1744806693325,-70000.0,0.00044406,40]
[358162831,1744806693335,-498.9,0.00044406,120]
[358162832,1744806693345,-500.0,0.00044408,30]
[358162833,1744806693355,-266.99685,0.00044488,30]
[358162834,1744806693365,-150.0,0.00044524,120]
[358162835,1744806693374,-500.0,0.00044603,30]
[358162836,1744806693384,-266.99685,0.00044688,30]
[358162837,1744806693397,-160.54,0.00044694,30]
[358162838,1744806693406,-160.54,0.00044694,30]
[358162839,1744806693416,-160.54,0.00044694,30]
[358162840,1744806693426,-160.54,0.00044694,30]
[358162841,1744806693437,-150.0,0.00044695,120]
[358162842,1744806693447,-2000.0,0.000447,2]
[358162843,1744806693456,-2233.23309877,0.000448,120]
[358162844,1744806693467,-1200.0,0.00044801,30]
[358162845,1744806693477,-266.99685,0.00044888,30]
[358162846,1744806693487,-10000.0,0.000449,2]
[358162847,1744806693497,-3406.563366,0.000449,2]
[358162848,1744806693507,-250.0,0.00045,5]
[358162849,1744806693517,-90000.0,0.00045,10]
[358162850,1744806693527,-50000.0,0.00045,25]
[358162851,1744806693537,-155.89,0.00045,120]
[358162852,1744806693547,-151.0,0.00045,120]
[358162853,1744806693557,-500.0,0.00045,120]
[358162854,1744806693567,-2328.0410741,0.00045,14]
[358162855,1744806693576,-160.0,0.00045,85]
[358162856,1744806693586,-275.68658502,0.00045,30]
[358162857,1744806693595,-5390.85629342,0.00045,120]
[358162858,1744806693605,-950.0,0.00045,2]
[358162859,1744806693615,-20000.0,0.00045,5]
[358162860,1744806693624,-200.0,0.0004501,120]
[358162861,1744806693635,-200.0,0.0004502,30]
[358162862,1744806693644,-585.35,0.0004502,2]
[358162863,1744806693654,-500.0,0.00045075,30]
[358162864,1744806693663,-266.99685,0.00045088,30]
[358162865,1744806693674,-262.13,0.00045205,120]
[358162866,1744806693684,-300.0,0.00045205,30]
[358162867,1744806693693,-500.0,0.00045206,2]
[358162868,1744806693703,-500.0,0.00045261,30]
[358162869,1744806693712,-266.99685,0.00045288,30]
[358162870,1744806693722,-152.0,0.00045377,19]
[358162871,1744806693732,-152.01862923,0.00045406,2]
[358162872,1744806693743,-507.8,0.00045406,120]
[358162873,1744806693753,-266.99685,0.00045488,30]
[358162874,1744806693763,-50000.0,0.000455,26]
[358162875,1744806693773,-475.11,0.00045679,7]
[358162876,1744806693782,-3000.0,0.00045679,7]
[358162877,1744806693792,-2000.0,0.00045679,7]
[358162878,1744806693802,-266.99685,0.00045688,30]
[358162879,1744806693812,-500.0,0.00045819,30]
[358162880,1744806693822,-194.0,0.0004588,120]
[358162881,1744806693833,-266.99685,0.00045888,30]
[358162882,1744806693842,-500.0,0.00045904,30]
[358162883,1744806693852,-250.0,0.00046,5]
[358162884,1744806693862,-50000.0,0.00046,25]
[358162885,1744806693871,-500.0,0.00046,120]
[358162886,1744806693881,-400.0,0.00046,120]
[358162887,1744806693890,-1100.0,0.00046,120]
[358162888,1744806693901,-1283.5294636,0.00046,120]
[358162889,1744806693910,-229.28,0.00046,120]
[358162890,1744806693920,-4256.99,0.00046,120]
[358162891,1744806693930,-1674.61,0.00046,120]
[358162892,1744806693941,-1492.16,0.00046,120]
[358162893,1744806693951,-1000.0,0.00046015,30]
[358162894,1744806693960,-411.77510122,0.00046028,2]
[358162895,1744806693970,-266.99685,0.00046088,30]
[358162896,1744806693979,-660.37,0.00046184,2]
[358162897,1744806693989,-266.99685,0.00046288,30]
[358162898,1744806693999,-1489.53,0.00046301,2]
[358162899,1744806694008,-227.34395565,0.00046445,10]
[358162900,1744806694018,-2000.0,0.00046445,10]
[358162901,1744806694028,-152.0,0.0004647,20]
[358162902,1744806694038,-266.99685,0.00046488,30]
[358162903,1744806694047,-500.0,0.0004655,30]
[358162904,1744806694057,-262.13,0.00046575,120]
[358162905,1744806694067,-266.99685,0.00046688,30]
[358162906,1744806694077,-209.0,0.000467,30]
[358162907,1744806694087,-214.0,0.000467,30]
[358162908,1744806694098,-209.0,0.000467,30]
[358162909,1744806694108,-522.98467473,0.00046816,30]
[358162910,1744806694119,-266.99685,0.00046888,30]
[358162911,1744806694129,-674.4,0.00046986,120]
[358162912,1744806694139,-250.0,0.00047,5]
[358162913,1744806694149,-172997.94878485,0.00047,14]
[358162914,1744806694159,-277.81277943,0.00047,14]
[358162915,1744806694169,-50000.0,0.00047,26]
[358162916,1744806694179,-1000.0,0.00047,2]
[358162917,1744806694190,-2000.0,0.00047,8]
[358162918,1744806694199,-500.0,0.00047132,30]
[358162919,1744806694210,-500.0,0.00047188,30]
[358162920,1744806694220,-500.0,0.00047211,30]
[358162921,1744806694230,-585.35,0.00047284,2]
[358162922,1744806694241,-2000.0,0.00047445,10]
[358162923,1744806694251,-1982.53861555,0.00047445,10]
[358162924,1744806694260,-616.42683875,0.00047445,10]
[358162925,1744806694269,-2000.0,0.00047445,10]
[358162926,1744806694279,-2000.0,0.00047445,10]
[358162927,1744806694289,-500.0,0.00047491,30]
[358162928,1744806694299,-154.15158917,0.000475,120]
[358162929,1744806694309,-2000.0,0.000475,2]
[358162930,1744806694319,-152.0,0.00047562,21]
[358162931,1744806694329,-5239.82166232,0.000476,2]
[358162932,1744806694339,-3455.1430407,0.000478,2]
[358162933,1744806694350,-653.25630122,0.000478,120]
[358162934,1744806694360,-150.0,0.000479,120]
[358162935,1744806694520,-150.0,0.00047938,30]
[358162936,1744806694531,-252.12222405,0.00047938,30]
[358162937,1744806694541,-262.13,0.00047945,120]
[358162938,1744806694552,-250.0,0.00048,5]
[358162939,1744806694562,-1800.0,0.00048,49]
[358162940,1744806694572,-1355.71353022,0.00048,120]
[358162941,1744806694582,-221.47,0.00048,8]
[358162942,1744806694592,-400.0,0.00048,120]
[358162943,1744806694603,-1100.0,0.00048,120]
[358162944,1744806694614,-2000.0,0.00048,120]
[358162945,1744806694623,-1283.52946359,0.00048,120]
[358162946,1744806694634,-500.0,0.00048193,30]
[358162947,1744806694644,-500.0,0.0004836,30]
[358162948,1744806694654,-505.0,0.00048493,120]
[358162949,1744806694665,-810.88,0.00048522,2]
[358162950,1744806694675,-530.81,0.00048522,2]
[358162951,1744806694685,-152.0,0.00048655,22]
[358162952,1744806694695,-2000.0,0.0004866,32]
[358162953,1744806694706,-500.0,0.0004866,30]
[358162954,1744806694715,-506.06020471,0.00048763,30]
[358162955,1744806694725,-2000.0,0.0004879,32]
[358162956,1744806694735,-22027.4939413,0.000488,120]
[358162957,1744806694745,-3285.40570071,0.000488,120]
[358162958,1744806694760,-499999.0,0.000488,120]
[358162959,1744806694770,-428203.05256671,0.000488,120]
[358162960,1744806694779,-1000.0,0.00048851,30]
[358162961,1744806694789,-150.06191011,0.0004888,120]
[358162962,1744806694798,-500.0,0.00048932,30]
[358162963,1744806694811,-150.0,0.00048944,120]
[358162964,1744806694821,-1000.0,0.0004896,30]
[358162965,1744806694830,-1000.0,0.0004896,30]
[358162966,1744806694840,-1000.0,0.0004896,30]
[358162967,1744806694849,-1000.0,0.0004896,30]
[358162968,1744806694859,-1000.0,0.0004896,30]
[358162969,1744806694869,-1000.0,0.0004896,30]
[358162970,1744806694879,-1000.0,0.0004896,30]
[358162971,1744806694889,-1000.0,0.0004896,30]
[358162972,1744806694899,-1000.0,0.0004896,30]
[358162973,1744806694909,-1000.0,0.0004896,30]
[358162974,1744806694918,-1000.0,0.0004896,30]
[358162975,1744806694927,-1000.0,0.0004896,30]
[358162976,1744806694937,-1000.0,0.0004896,30]
[358162977,1744806694947,-1000.0,0.0004896,30]
[358162978,1744806694956,-1000.0,0.0004896,30]
[358162979,1744806694966,-1000.0,0.0004896,30]
[358162980,1744806694976,-1000.0,0.0004896,30]
[358162981,1744806694986,-1000.0,0.0004896,30]
[358162982,1744806694995,-1000.0,0.0004896,30]
[358162983,1744806695006,-1000.0,0.0004896,30]
[358162984,1744806695016,-858.09,0.0004896,30]
[358162985,1744806695027,-3000.0,0.0004899,32]
[358162986,1744806695037,-250.0,0.00049,5]
[358162987,1744806695046,-1000.0,0.00049,120]
[358162988,1744806695056,-1462.0,0.00049,120]
[358162989,1744806695065,-1220.8928631,0.00049,120]
[358162990,1744806695075,-282.951,0.00049,120]
[358162991,1744806695084,-2000.0,0.00049,120]
[358162992,1744806695094,-1050.0,0.00049,2]
[358162993,1744806695104,-154.0,0.00049,120]
[358162994,1744806695115,-209.0,0.0004903,30]
[358162995,1744806695124,-214.0,0.0004903,30]
[358162996,1744806695134,-209.0,0.0004903,30]
[358162997,1744806695144,-150.0,0.00049197,120]
[358162998,1744806695153,-700.58056066,0.000493,2]
[358162999,1744806695163,-301.0,0.00049315,30]
[358163000,1744806695173,-262.13,0.00049315,120]
[358163001,1744806695182,-312.75548647,0.00049315,120]
[358163002,1744806695193,-800.0,0.00049315,12]
[358163003,1744806695202,-800.0,0.00049315,12]
[358163004,1744806695212,-4000.0,0.00049315,30]
[358163005,1744806695223,-2000.0,0.00049315,60]
[358163006,1744806695232,-2000.0,0.00049315,60]
[358163007,1744806695242,-2000.0,0.00049315,60]
[358163008,1744806695252,-2000.0,0.00049315,60]
[358163009,1744806695261,-2000.0,0.00049315,60]
[358163010,1744806695269,-2000.0,0.00049315,60]
[358163011,1744806695279,-2000.0,0.00049315,60]
[358163012,1744806695287,-2000.0,0.00049315,60]
[358163013,1744806695296,-2000.0,0.00049315,60]
[358163014,1744806695305,-2000.0,0.00049315,60]
[358163015,1744806695315,-2000.0,0.00049315,60]
[358163016,1744806695324,-2000.0,0.00049315,60]
[358163017,1744806695333,-2000.0,0.00049315,60]
[358163018,1744806695342,-2000.0,0.00049315,60]
[358163019,1744806695351,-2000.0,0.00049315,60]
[358163020,1744806695360,-331.0,0.00049315,60]
[358163021,1744806695369,-2000.0,0.00049315,60]
[358163022,1744806695378,-2000.0,0.00049315,60]
[358163023,1744806695387,-2000.0,0.00049315,60]
[358163024,1744806695399,-2000.0,0.00049315,60]
[358163025,1744806695408,-2000.0,0.00049315,60]
[358163026,1744806695417,-2000.0,0.00049315,60]
[358163027,1744806695426,-212.0,0.00049315,60]
[358163028,1744806695436,-300.0,0.00049315,30]
[358163029,1744806695446,-660.37,0.00049315,2]
[358163030,1744806695455,-242.94598823,0.000494,120]
[358163031,1744806695464,-202.04222114,0.000494,120]
[358163032,1744806695475,-3000.0,0.0004944,32]
[358163033,1744806695485,-585.35,0.00049548,2]
[358163034,1744806695494,-3000.0,0.0004968,32]
[358163035,1744806695505,-1200.0,0.000497,30]
[358163036,1744806695514,-152.0,0.00049748,23]
[358163037,1744806695523,-217.98862507,0.00049748,5]
[358163038,1744806695533,-1000.0,0.000498,120]
[358163039,1744806695543,-151.54675808,0.00049849,30]
[358163040,1744806695553,-1359.25607078,0.000499,120]
[358163041,1744806695563,-63051.55663348,0.000499,120]
[358163042,1744806695572,-5333.56403596,0.0004999,14]
[358163043,1744806695582,-42782.86000789,0.0004999,2]
[358163044,1744806695592,-487.44065537,0.0004999,3]
[358163045,1744806695601,-40976.25333647,0.00049998,120]
[358163046,1744806695610,-50000.0,0.0005,50]
[358163047,1744806695620,-2637.60152868,0.0005,5]
[358163048,1744806695630,-1517.3606473,0.0005,2]
[358163049,1744806695641,-1137.50866216,0.0005,2]
[358163050,1744806695651,-200.0,0.0005,2]
[358163051,1744806695660,-250.0,0.0005,5]
[358163052,1744806695670,-767.31784957,0.0005,7]
[358163053,1744806695680,-8058.3957992,0.0005,15]
[358163054,1744806695689,-50000.0,0.0005,15]
[358163055,1744806695699,-2000.0,0.0005,20]
[358163056,1744806695708,-339.0,0.0005,120]
[358163057,1744806695716,-1621.91,0.0005,120]
[358163058,1744806695726,-3600.0,0.0005,51]
[358163059,1744806695736,-2702.23,0.0005,120]
[358163060,1744806695746,-500.0,0.0005,120]
[358163061,1744806695757,-500.0,0.0005,120]
[358163062,1744806695767,-164.4021763,0.0005,120]
[358163063,1744806695777,-3300.99421427,0.0005,120]
[358163064,1744806695786,-2524.48271816,0.0005,120]
[358163065,1744806695797,-972.939,0.0005,120]
[358163066,1744806695809,-2037.79,0.0005,120]
[358163067,1744806695821,-400.0,0.0005,120]
[358163068,1744806695830,-1100.0,0.0005,120]
[358163069,1744806695840,-994.40593751,0.0005,120]
[358163070,1744806695849,-180.68,0.0005,120]
[358163071,1744806695859,-2000.0,0.0005,120]
[358163072,1744806695868,-1242.42,0.0005,120]
[358163073,1744806695878,-10000.0,0.0005,120]
[358163074,1744806695888,-1924.11780367,0.0005,90]
[358163075,1744806695897,-10076.95993899,0.0005,120]
[358163076,1744806695907,-11699.0,0.0005,120]
[358163077,1744806695917,-150.0,0.0005,49]
[358163078,1744806695927,-159335.77559737,0.0005,120]
[358163079,1744806695937,-1000000.0,0.0005,120]
[358163080,1744806695946,-1000000.0,0.0005,120]
[358163081,1744806695956,-1000000.0,0.0005,120]
[358163082,1744806695966,-1000000.0,0.0005,120]
[358163083,1744806695975,-1000000.0,0.0005,120]
[358163084,1744806695984,-500.85194503,0.0005,5]
[358163085,1744806695994,-500.0,0.00050014,30]
[358163086,1744806696005,-115104.86185592,0.000501,7]
[358163087,1744806696015,-291524.12861721,0.000501,7]
[358163088,1744806696026,-10000.0,0.000502,120]
[358163089,1744806696035,-2000.0,0.000502,2]
[358163090,1744806696046,-1000.0,0.00050387,60]
[358163091,1744806696057,-10000.0,0.000504,120]
[358163092,1744806696066,-3000.0,0.0005044,32]
[358163093,1744806696076,-3000.0,0.0005044,32]
[358163094,1744806696086,-2673.61703602,0.00050474,120]
[358163095,1744806696095,-1000.0,0.00050506,60]
[358163096,1744806696105,-10000.0,0.000506,120]
[358163097,1744806696114,-262.32105338,0.00050684,120]
[358163098,1744806696123,-500.0,0.00050685,120]
[358163099,1744806696132,-500.0,0.00050685,120]
[358163100,1744806696141,-500.0,0.00050685,120]
[358163101,1744806696150,-500.0,0.00050685,120]
[358163102,1744806696159,-500.0,0.00050685,120]
[358163103,1744806696168,-500.0,0.00050685,120]
[358163104,1744806696178,-500.0,0.00050685,120]
[358163105,1744806696187,-500.0,0.00050685,120]
[358163106,1744806696196,-500.0,0.00050685,120]
[358163107,1744806696206,-500.0,0.00050685,120]
[358163108,1744806696215,-500.0,0.00050685,120]
[358163109,1744806696226,-500.0,0.00050685,120]
[358163110,1744806696236,-500.0,0.00050685,120]
[358163111,1744806696249,-500.0,0.00050685,120]
[358163112,1744806696259,-500.0,0.00050685,120]
[358163113,1744806696269,-500.0,0.00050685,120]
[358163114,1744806696278,-500.0,0.00050685,120]
[358163115,1744806696289,-282.88081806,0.00050685,120]
[358163116,1744806696299,-500.0,0.00050685,120]
[358163117,1744806696309,-500.0,0.00050685,120]
[358163118,1744806696319,-500.0,0.00050685,120]
[358163119,1744806696328,-500.0,0.00050685,120]
[358163120,1744806696337,-500.0,0.00050685,120]
[358163121,1744806696347,-500.0,0.00050685,120]
[358163122,1744806696356,-500.0,0.00050685,120]
[358163123,1744806696366,-545.92736252,0.00050685,120]
[358163124,1744806696377,-10000.0,0.000508,120]
[358163125,1744806696387,-50000.0,0.00051,51]
[358163126,1744806696399,-250.0,0.00051,5]
[358163127,1744806696409,-2298.09276609,0.00051,120]
[358163128,1744806696419,-2000.0,0.00051,120]
[358163129,1744806696428,-1208.5644548,0.00051,120]
[358163130,1744806696439,-1303.3937989,0.00051,100]
[358163131,1744806696449,-10000.0,0.00051,120]
[358163132,1744806696459,-1000000.0,0.00051,120]
[358163133,1744806696469,-1000000.0,0.00051,120]
[358163134,1744806696479,-1000000.0,0.00051,120]
[358163135,1744806696489,-1000000.0,0.00051,120]
[358163136,1744806696499,-1100.0,0.00051,2]
[358163137,1744806696509,-500.0,0.00051098,60]
[358163138,1744806696519,-10000.0,0.000512,120]
[358163139,1744806696528,-1200.0,0.0005123,60]
[358163140,1744806696538,-209.0,0.0005136,30]
[358163141,1744806696547,-214.0,0.0005136,30]
[358163142,1744806696557,-209.0,0.0005136,30]
[358163143,1744806696568,-10000.0,0.000514,120]
[358163144,1744806696578,-2542.987,0.0005144,32]
[358163145,1744806696588,-10000.0,0.000516,120]
[358163146,1744806696597,-150.0,0.00051607,120]
[358163147,1744806696606,-500.0,0.00051661,60]
[358163148,1744806696616,-1000.0,0.00051665,60]
[358163149,1744806696625,-10000.0,0.000518,120]
[358163150,1744806696635,-585.35,0.00051812,2]
[358163151,1744806696779,-154.0,0.00051818,120]
[358163152,1744806696789,-1200.0,0.00051867,60]
[358163153,1744806696799,-674.4,0.00051877,120]
[358163154,1744806696810,-50000.0,0.00052,52]
[358163155,1744806696819,-50000.0,0.00052,52]
[358163156,1744806696829,-250.0,0.00052,5]
[358163157,1744806696839,-151.0,0.00052,120]
[358163158,1744806696848,-2300.0,0.00052,53]
[358163159,1744806696858,-500.0,0.00052,120]
[358163160,1744806696867,-400.0,0.00052,120]
[358163161,1744806696877,-1100.0,0.00052,120]
[358163162,1744806696886,-2000.0,0.00052,120]
[358163163,1744806696897,-10000.0,0.00052,120]
[358163164,1744806696906,-11699.0,0.00052,120]
[358163165,1744806696915,-2924.70056081,0.00052,40]
[358163166,1744806696924,-1000000.0,0.00052,120]
[358163167,1744806696934,-1000000.0,0.00052,120]
[358163168,1744806696943,-1000000.0,0.00052,120]
[358163169,1744806696953,-1000000.0,0.00052,120]
[358163170,1744806696963,-500.0,0.0005207,60]
[358163171,1744806696972,-1200.0,0.00052098,60]
[358163172,1744806696982,-10000.0,0.000522,120]
[358163173,1744806696991,-2983.60512987,0.0005233,120]
[358163174,1744806697001,-10000.0,0.000524,120]
[358163175,1744806697011,-5000.0,0.0005244,32]
[358163176,1744806697021,-500.0,0.00052468,60]
[358163177,1744806697030,-10000.0,0.000526,120]
[358163178,1744806697040,-10000.0,0.000528,120]
[358163179,1744806697050,-500.0,0.00052816,30]
[358163180,1744806697058,-469.0,0.00052867,13]
[358163181,1744806697068,-200.0,0.00052867,2]
[358163182,1744806697078,-200.0,0.00052867,2]
[358163183,1744806697087,-200.0,0.00052867,2]
[358163184,1744806697097,-200.0,0.00052867,2]
[358163185,1744806697106,-200.0,0.00052867,2]
[358163186,1744806697115,-200.0,0.00052867,2]
[358163187,1744806697124,-200.0,0.00052867,2]
[358163188,1744806697134,-200.0,0.00052867,2]
[358163189,1744806697143,-200.0,0.00052867,2]
[358163190,1744806697152,-200.0,0.00052867,2]
[358163191,1744806697162,-200.0,0.00052867,2]
[358163192,1744806697172,-200.0,0.00052867,2]
[358163193,1744806697181,-200.0,0.00052867,2]
[358163194,1744806697190,-200.0,0.00052867,2]
[358163195,1744806697199,-200.0,0.00052867,2]
[358163196,1744806697209,-200.0,0.00052867,2]
[358163197,1744806697219,-200.0,0.00052867,2]
[358163198,1744806697228,-200.0,0.00052867,2]
[358163199,1744806697238,-200.0,0.00052867,2]
[358163200,1744806697247,-200.0,0.00052867,2]
[358163201,1744806697258,-200.0,0.00052867,2]
[358163202,1744806697267,-200.0,0.00052867,2]
[358163203,1744806697276,-200.0,0.00052867,2]
[358163204,1744806697285,-200.0,0.00052867,2]
[358163205,1744806697294,-200.0,0.00052867,2]
[358163206,1744806697304,-200.0,0.00052867,2]
[358163207,1744806697313,-200.0,0.00052867,2]
[358163208,1744806697322,-200.0,0.00052867,2]
[358163209,1744806697332,-200.0,0.00052867,2]
[358163210,1744806697341,-200.0,0.00052867,2]
[358163211,1744806697351,-200.0,0.00052867,2]
[358163212,1744806697360,-200.0,0.00052867,2]
[358163213,1744806697369,-200.0,0.00052867,2]
[358163214,1744806697379,-200.0,0.00052867,2]
[358163215,1744806697388,-284.0,0.00052867,2]
[358163216,1744806697398,-50000.0,0.00053,53]
[358163217,1744806697408,-575.74602354,0.00053,2]
[358163218,1744806697418,-250.0,0.00053,5]
[358163219,1744806697427,-252.82,0.00053,10]
[358163220,1744806697437,-1799.99999908,0.00053,54]
[358163221,1744806697447,-2000.0,0.00053,120]
[358163222,1744806697456,-10000.0,0.00053,120]
[358163223,1744806697465,-1000000.0,0.00053,120]
[358163224,1744806697475,-1000000.0,0.00053,120]
[358163225,1744806697485,-1000000.0,0.00053,120]
[358163226,1744806697495,-1000000.0,0.00053,120]
[358163227,1744806697506,-2000.0,0.00053,2]
[358163228,1744806697516,-1150.0,0.00053,2]
[358163229,1744806697525,-10000.0,0.000532,120]
[358163230,1744806697535,-446.29748216,0.0005331,2]
[358163231,1744806697545,-300970.0,0.0005333,30]
[358163232,1744806697554,-539.94496109,0.00053385,60]
[358163233,1744806697564,-500.0,0.0005339,60]